Cogmind - Beta 12 @@@ ROGUE MODE // 2023.07.31 @ 00:05:12 Player: ZOT Result: Destroyed by D-53 Grenadier with Mini Grenade Launcher Performance ------------- Evolutions (2) 1000 Regions Visited (5) 1000 Robots Destroyed (67) 335 Value Destroyed (2192) 2192 Prototype IDs (4) 80 Alien Tech Used (0) 0 Bonus (582) 582 TOTAL SCORE: 5189 Bonus ------- High Alert Combat Kills 235 Follower Combat Kills 147 Entered Garrisons 200 Cogmind --------- Core Integrity 0/550 Matter 279/300 Energy 257/265 System Corruption 4% Temperature Cool (0) Movement Walking (190) Ox1 Location -8/Garrison Parts ------- > --- POWER (1) -------- Improved Ion Engine > --- PROPULSION (4) --- Aluminum Leg Cesium-ion Thruster > --- UTILITY (4) ------ Improved Heat Sink Small Storage Unit > --- WEAPON (2) ------- Rocket Launcher Heavy Flail > --- INVENTORY (8) ---- Improved Ion Engine Light Nuclear Core Heavy Particle Gun Heavy Particle Cannon Assault Rifle Heavy Assault Rifle Heavy Flail Peak State ------------ > --- POWER ------------ Ion Engine > --- PROPULSION ------- Cesium-ion Thruster Cesium-ion Thruster Cesium-ion Thruster Cesium-ion Thruster > --- UTILITY ---------- Improved Heat Sink Small Storage Unit Reaction Control System System Shield > --- WEAPON ----------- Heavy EM Shotgun Heavy Flail > --- INVENTORY -------- Light Ion Engine Cesium-ion Thruster Cesium-ion Thruster Cesium-ion Thruster Heavy Particle Cannon Assault Rifle Rocket Launcher Heavy Flail [Rating: 31] Favorites ----------- Power Ion Engine Engine Ion Engine Power Core Light Nuclear Core Propulsion Cesium-ion Thruster Treads Light Treads Leg Aluminum Leg Wheel Wheel Hover Unit Aerolev Unit Flight Unit Cesium-ion Thruster Utility Small Storage Unit Device Improved Terrain Scanner Storage Small Storage Unit Processor Terrain Scan Processor Hackware System Shield Protection Light Armor Plating Weapon Heavy Flail Energy Gun Heavy EM Shotgun Energy Cannon Heavy Particle Cannon Ballistic Gun Assault Rifle Ballistic Cannon Improved Light Cannon Launcher Rocket Launcher Special Weapon Mining Laser Impact Weapon Heavy Flail Build | -11 -10 -9 -8 -8 -8 ------- Run | Jun Mat Mat Mat Sto Gar Slots Evolved 4 | . . 2 2 . . Power . | . . . . . . Propulsion 2 | . . 2 . . . Utility 2 | . . . 2 . . Weapon . | . . . . . . Parts Attached 82 | 11 2 16 22 12 19 Power 8 | 1 . 2 2 2 1 Engine 6 | 1 . 2 2 . 1 Core 2 | . . . . 2 . Reactor . | . . . . . . Propulsion 36 | 6 . 7 11 2 10 Treads 9 | . . 6 3 . . Leg 4 | 2 . . . . 2 Wheel 7 | 4 . 1 2 . . Hover 1 | . . . 1 . . Flight 15 | . . . 5 2 8 Utility 17 | 2 1 2 6 3 3 Device 10 | 1 1 2 3 2 1 Storage 2 | 1 . . 1 . . Processor 1 | . . . 1 . . Hackware 2 | . . . 1 1 . Protection 2 | . . . . . 2 Artifact . | . . . . . . Weapon 21 | 2 1 5 3 5 5 Energy Gun 3 | . . . 1 2 . Energy Cannon 2 | . . 2 . . . Ballistic Gun 4 | 2 . 1 . . 1 Ballistic Cannon 1 | . . 1 . . . Launcher 3 | . . 1 . . 2 Special Weapon 1 | . 1 . . . . Impact Weapon 7 | . . . 2 3 2 Slashing Weapon . | . . . . . . Piercing Weapon . | . . . . . . Special Melee Weapon . | . . . . . . Unidentified Prototypes 4 | . . 1 2 1 . Corrupted Parts 1 | . . . . . 1 System Corruption 4 | . . . . . 4 Parts Lost 27 | . . 2 9 3 13 Power 4 | . . 1 2 . 1 Propulsion 16 | . . 1 5 2 8 Utility 7 | . . . 2 1 4 Weapon . | . . . . . . Highest Loss Streak 6 | . . 1 6 2 5 To Critical Strikes . | . . . . . . Average Slot Usage (%) 88 | . 100 99 87 95 67 Engine 8 | . 14 11 7 4 6 Treads 8 | . . 21 14 . . Wheel 11 | . 28 21 7 . . Flight 11 | . . . 6 35 21 Device 10 | . 14 11 9 10 6 Storage 10 | . 14 11 8 9 9 Processor 1 | . . . 7 . . Hackware 4 | . . . 7 14 2 Energy Cannon 2 | . . 4 5 . . Ballistic Gun 7 | . 26 14 . . . Ballistic Cannon 1 | . . 2 5 . . Impact Weapon 6 | . . . 5 14 13 Naked Turns . | . . . . . . Heaviest Build 24 | 15 15 23 24 19 20 Greatest Support 60 | 20 20 40 60 20 20 Greatest Overweight (x) 6 | . . 1 3 . 6 Average Overweight (x) . | . . . . . . Largest Inventory Capacity 8 | 8 8 8 8 8 8 Average Capacity 7 | 7 8 8 7 8 8 Most Carried 8 | 8 8 8 8 8 8 Average Carried 7 | 5 8 7 6 7 6 Final Capacity 8 | 8 8 8 8 8 8 Final Carried 8 | 8 8 8 8 6 7 Class Distribution -------------------- 54% | Mutant 16% | Scavenger-Mutant 12% | Hacker-Sprinter 9% | Sprinter 6% | Scavenger-Sprinter Dominant Class ---------------- Mutant | -10/Materials Mutant | -9/Materials Mutant | -8/Materials Hacker-Sprinter | -8/Storage Mutant | -8/Garrison Resources | -11 -10 -9 -8 -8 -8 ----------- Run | Jun Mat Mat Mat Sto Gar Matter Collected 1417 | 289 . 479 275 120 254 Remotely . | . . . . . . Salvage Created 2350 | 150 . 716 516 284 684 Parts 107 | 12 . 51 14 9 21 Haulers Intercepted 3 | . . 1 1 1 . Recyclers Shooed 1 | . . 1 . . . Parts Field Recycled . | . . . . . . Retrieved Matter . | . . . . . . Parts Self-Destructed . | . . . . . . Prevented . | . . . . . . Kills | -11 -10 -9 -8 -8 -8 ------- Run | Jun Mat Mat Mat Sto Gar Combat Hostiles Destroyed 53 | . . 18 10 5 20 Melee 12 | . . . 4 2 6 Guns 8 | . . 7 1 . . Cannons 7 | . . 4 3 . . AOE 12 | . . 7 . . 5 Classes Destroyed 11 | 2 . 6 1 . 2 Worker 2 | . . 1 1 . . Tunneler 5 | 5 . . . . . Hauler 3 | . . 1 1 1 . Recycler 2 | 1 . 1 . . . Watcher 2 | . . 2 . . . Swarmer 14 | . . 8 . . 6 Grunt 21 | . . 5 7 1 8 Protector 1 | . . . . . 1 Sentry 14 | . . 5 2 4 3 Specialist 1 | . . . . . 1 Hunter 2 | . . . 1 . 1 Best Kill Streak 8 | 5 . 8 5 2 8 Combat Bots Only 8 | . . 7 5 1 8 Max Kills in Single Turn 3 | 2 . 3 1 1 2 Gunslinging . | . . . . . . Exploded 2 | . . 2 . . 2 Melee 1 | . . . 1 1 1 Uniques/NPCs Destroyed . | . . . . . . Combat | -11 -10 -9 -8 -8 -8 -------- Run | Jun Mat Mat Mat Sto Gar Damage Taken 2997 | . 22 599 1084 240 1052 Core 667 | . 22 83 220 76 266 Absorbed by Shields 65 | . . . . . 65 Regen/Repaired (Parts) 207 | . . . 135 72 . Core Remaining (%) 90 | 100 91 79 . . . Volleys Fired 89 | 12 2 39 26 1 9 Largest 2 | 2 2 2 2 1 1 Hottest 114 | 40 100 114 114 50 33 Shots Fired 160 | 22 3 78 47 1 9 Gun 88 | 22 2 55 5 1 3 Cannon 61 | . . 19 42 . . Launcher 10 | . . 4 . . 6 Special 1 | . 1 . . . . Kinetic 106 | 22 2 58 21 . 3 Thermal 38 | . 1 16 21 . . Explosive 10 | . . 4 . . 6 Electromagnetic 6 | . . . 5 1 . Robot Hit Streak 16 | 3 1 16 15 8 14 Robot Miss Streak 3 | 1 1 2 3 . . Penetration Max . | . . . . . . Secondary Targets 1 | . . 1 . . . Max Gunslinging Chain 1 | . . 1 . . . Shots Hit Robots 171 | 13 1 53 47 18 39 Core Hits 67 | 7 . 27 15 3 15 Critical Kills 4 | . . 1 1 1 1 Critical Parts Destroyed 18 | . . 1 3 5 9 Critical Strikes 23 | . . 2 5 6 10 Destroy 2 | . . 2 . . . Blast 1 | . . . 1 . . Smash 20 | . . . 4 6 10 Melee Attacks 102 | . . . 20 31 51 Impact 102 | . . . 20 31 51 Slashing . | . . . . . . Piercing . | . . . . . . Sneak Attacks 3 | . . . 2 1 . Combat Hostiles . | . . . . . . Follow-up Attacks 14 | . . . 2 5 7 Damage Inflicted 5529 | 162 12 1255 1540 764 1796 Guns 776 | 162 12 469 103 30 . Cannons 1056 | . . 344 712 . . Explosions 780 | . . 442 . . 338 Melee 2911 | . . . 719 734 1458 Ramming 6 | . . . 6 . . Kinetic 949 | 162 12 513 262 . . Thermal 750 | . . 300 450 . . Explosive 780 | . . 442 . . 338 Electromagnetic 133 | . . . 103 30 . Impact 2911 | . . . 719 734 1458 Slashing . | . . . . . . Piercing . | . . . . . . Highest Corruption 4 | . . . . . 4 Average Corruption 4 | . . . . . 4 Corruption Purged . | . . . . . . Corruption Blocked . | . . . . . . Effects 4 | . . . . . 4 Message Errors 3 | . . . . . 3 Heat Flow Errors 1 | . . . . . 1 Overload Shots . | . . . . . . Overflow Damage 906 | . . 24 111 252 519 Projectiles 9 | . . 5 4 . . Explosions 21 | . . 19 . . 2 Melee 876 | . . . 107 252 517 Knockbacks 6 | . . . 5 . 1 Impact 3 | . . . 2 . 1 Kinetic 3 | . . . 3 . . Secondary . | . . . . . . Self-Inflicted Damage . | . . . . . . Shots . | . . . . . . Rammed 1 | . . . 1 . . Targets Rammed 1 | . . . 1 . . Kicked . | . . . . . . Crushed . | . . . . . . Highest Temperature 450 | . 20 189 450 7 209 Average Temperature 138 | . 12 81 189 7 94 Received Heat Transfer 1101 | . 12 174 540 108 267 Effects 4 | . . . 4 . . Shutdowns 1 | . . . 1 . . Interference 3 | . . . 3 . . Siege Activations . | . . . . . . Robots Corrupted . | . . . . . . Combat Hostiles . | . . . . . . Parts Fried 24 | . . . 5 7 12 Impact Corruptions 34 | . . . 5 9 20 Robots Melted . | . . . . . . Combat Hostiles . | . . . . . . Parts Melted . | . . . . . . Heat Transferred 1110 | . . 444 666 . . Parts Sabotaged . | . . . . . . Parts Stolen . | . . . . . . Parts Stripped . | . . . . . . Power Chain Reactions . | . . . . . . Missiles Intercepted . | . . . . . . Alert | -11 -10 -9 -8 -8 -8 ------- Run | Jun Mat Mat Mat Sto Gar Peak Influence 966 | 30 20 516 238 244 966 Initial 128 | . 19 8 128 58 91 Average 232 | 12 19 236 121 114 605 Maximum Alert Level 3 | . . 2 1 1 3 Low Security (%) 63 | 100 100 34 96 93 8 Level 1 15 | . . 58 3 6 2 Level 2 14 | . . 7 . . 61 Level 3 6 | . . . . . 28 Level 4 . | . . . . . . Level 5 . | . . . . . . High Security . | . . . . . . Max Security . | . . . . . . Squads Dispatched 8 | . 2 4 1 1 . Investigation 3 | . 1 1 1 . . Extermination . | . . . . . . Reinforcement 5 | . 1 3 . 1 . Assault . | . . . . . . Garrison . | . . . . . . Intercept . | . . . . . . Searches Triggered . | . . . . . . Construction Impeded 1 | . . 1 . . . Haulers Reinforced . | . . . . . . Active Scanning Responses . | . . . . . . Cargo Convoy Interrupts . | . . . . . . Stealth | -11 -10 -9 -8 -8 -8 --------- Run | Jun Mat Mat Mat Sto Gar Distress Signals 3 | . . . 2 1 . Communications Jammed . | . . . . . . Distress Signals . | . . . . . . Times Spotted 90 | . 4 21 12 8 45 Peak Tracking Total 17 | . 5 5 6 2 17 Tactical Retreats 10 | . . 2 . . 8 Traps | -11 -10 -9 -8 -8 -8 ------- Run | Jun Mat Mat Mat Sto Gar Traps Triggered 6 | . 1 . 1 . 4 Indirectly . | . . . . . . Trap Hack Attempts . | . . . . . . Triggered . | . . . . . . Disarmed . | . . . . . . Reprogrammed . | . . . . . . Reused . | . . . . . . Traps Extracted . | . . . . . . Installed . | . . . . . . Triggered . | . . . . . . Machines | -11 -10 -9 -8 -8 -8 ---------- Run | Jun Mat Mat Mat Sto Gar Machines Disabled 2 | . . . 1 . 1 Max in Single Turn 1 | . . . 1 . 1 Garrison Relay 1 | . . . . . 1 Machines Repaired . | . . . . . . Machines Sabotaged . | . . . . . . Overloaded Fab Kills . | . . . . . . Hacking | -11 -10 -9 -8 -8 -8 --------- Run | Jun Mat Mat Mat Sto Gar Machines Accessed 23 | . . 7 5 9 2 Terminals 17 | . . 5 4 6 2 Fabricators . | . . . . . . Repair Stations 3 | . . . 1 2 . Recycling Units 2 | . . 2 . . . Scanalyzers . | . . . . . . Garrison Access 1 | . . . . 1 . Total Hacks 82 | . . 21 18 39 4 Successful 44 | . . 9 9 25 1 Failed 38 | . . 12 9 14 3 Catastrophic 10 | . . 4 1 4 1 Database Lockouts . | . . . . . . Manual 25 | . . 8 5 12 . Terminals 60 | . . 17 13 26 4 Fabricators . | . . . . . . Repair Stations 14 | . . . 5 9 . Recycling Units 4 | . . 4 . . . Scanalyzers . | . . . . . . Garrison Access 4 | . . . . 4 . Terminal Hacks 28 | . . 7 5 15 1 Record 6 | . . . . 6 . Open Door 1 | . . . . . 1 Branch Access Points 1 | . . . . 1 . Alert Level 8 | . . 3 2 3 . Unreport Threat 2 | . . 1 . 1 . Locate Traps 3 | . . . 1 2 . Hauler Manifests 1 | . . 1 . . . Zone Layout 6 | . . 2 2 2 . Fabricator Hacks . | . . . . . . Repair Station Hacks 11 | . . . 4 7 . Scan Component 6 | . . . 2 4 . Repair 5 | . . . 2 3 . Recycling Unit Hacks 1 | . . 1 . . . Report Inventory 1 | . . 1 . . . Scanalyzer . | . . . . . . Garrison Access Hacks 2 | . . . . 2 . Unlock Access 1 | . . . . 1 . Coupler Status 1 | . . . . 1 . Unauthorized Hacks 2 | . . 1 . 1 . Terminals 2 | . . 1 . 1 . Track 1 | . . . . 1 . Assimilate 1 | . . 1 . . . Fabricators . | . . . . . . Repair Stations . | . . . . . . Recycling Units . | . . . . . . Scanalyzers . | . . . . . . Garrison Access . | . . . . . . Data Cores Recovered . | . . . . . . Used . | . . . . . . Hacking Detections 21 | . . 7 4 8 2 Full Trace Events 3 | . . 2 . . 1 Feedback Events . | . . . . . . Feedback Blocked . | . . . . . . Robot Schematics Acquired . | . . . . . . Robots Built . | . . . . . . Authchips . | . . . . . . Time . | . . . . . . Total Robot Build Rating . | . . . . . . Part Schematics Acquired . | . . . . . . Parts Built . | . . . . . . Authchips . | . . . . . . Time . | . . . . . . Total Part Build Rating . | . . . . . . Parts Repaired 5 | . . . 2 3 . Time 181 | . . . 64 117 . Parts Recycled . | . . . . . . Recycled Matter . | . . . . . . Retrieved Matter . | . . . . . . Retrieved Components . | . . . . . . Parts Scanalyzed . | . . . . . . Part Schematics Acquired . | . . . . . . Parts Damaged . | . . . . . . Bothacking | -11 -10 -9 -8 -8 -8 ------------ Run | Jun Mat Mat Mat Sto Gar Used RIF Installer . | . . . . . . Robots Hacked . | . . . . . . Non-combat . | . . . . . . Combat . | . . . . . . Robot Hacks Applied . | . . . . . . Relay Couplers Released 3 | . . . . . 3 Machine Destruction 3 | . . . . . 3 Fabnet Peak Effective % . | . . . . . . Robots Rewired . | . . . . . . Allies Hacked . | . . . . . . Hacks Repelled . | . . . . . . Allies | -11 -10 -9 -8 -8 -8 -------- Run | Jun Mat Mat Mat Sto Gar Total Allies 2 | . . . . . 2 Largest Group 2 | . . . . . 2 Highest-Rated Group 62 | . . . . . 62 Highest-Rated Ally 31 | . . . . . 31 Total Orders . | . . . . . . Ally Attacks 27 | . . . . . 27 Total Damage 418 | . . . . . 418 Kills 5 | . . . . . 5 Allies Corrupted . | . . . . . . Allies Melted . | . . . . . . Intel | -11 -10 -9 -8 -8 -8 ------- Run | Jun Mat Mat Mat Sto Gar Robot Analysis Total . | . . . . . . Derelict Logs Recovered . | . . . . . . Drone Launches . | . . . . . . Drone Recoveries . | . . . . . . Exploration | -11 -10 -9 -8 -8 -8 ------------- Run | Jun Mat Mat Mat Sto Gar Turns Passed 2584 | 98 354 582 623 372 555 Spaces Moved 1642 | 44 70 373 292 356 507 Core 15 | 1 . . 3 . 11 Treads 64 | . . 35 29 . . Legs 62 | . . . . . 62 Wheels 645 | 43 70 338 194 . . Hover . | . . . . . . Flight 856 | . . . 66 356 434 Fastest Speed 26 | 50 80 80 26 26 26 Average Speed 66 | 79 80 93 92 26 55 Slowest Speed 350 | 80 80 160 305 26 350 Overloaded Moves . | . . . . . . Propulsion Burnouts . | . . . . . . Robots Hopped . | . . . . . . Cave-ins Triggered . | . . . . . . Exploration Rate (%) 27 | 3 18 31 24 52 39 Regions Visited 5 Branch Regions 1 Pre-discovered Areas . | . . . . . . Known Exits Taken 1 | . . . . 1 . Unknown Exits Taken 4 | 1 1 1 1 . . Scrap Searched . | . . . . . . Spaces Dug 11 | . 1 9 . . 1 Terrain Destroyed 66 | . 1 36 5 . 24 Melee 1 | . . . . . 1 Projectile 9 | . 1 3 5 . . AOE 56 | . . 33 . . 23 Terrain Rammed . | . . . . . . Walls Destroyed . | . . . . . . Machines Disabled . | . . . . . . Actions | -11 -10 -9 -8 -8 -8 --------- Run | Jun Mat Mat Mat Sto Gar Total 2833 | 83 362 527 566 593 702 Wait 830 | . 287 84 182 190 87 Move 1637 | 43 69 372 291 356 506 Hop . | . . . . . . Pick Up 53 | 16 1 7 17 4 8 Fast Attach 20 | . . 2 9 3 6 Attach 34 | 7 . 4 6 5 12 Detach 5 | . . . . . 5 Swap 32 | 4 2 11 7 4 4 Drop 25 | 1 1 8 10 4 1 Fire 89 | 12 2 39 26 1 9 Melee 86 | . . . 17 26 43 Ram . | . . . . . . Kick . | . . . . . . Crush 1 | . . . 1 . . Escape Stasis 21 | . . . . . 21 Rewire . | . . . . . . Trap . | . . . . . . Miscellaneous . | . . . . . . Route ------- -11/Junkyard -10/Materials -9/Materials -8/Materials -8/Storage (discovered 2 exits: Rec / Gar) -8/Garrison (discovered 1 exit: *Rec) History --------- Turn | Location | Event 17 | -11/Junkyard | Discovered new exit (range 15) 99 | -11/Junkyard | Entered Materials 306 | -10/Materials | Build established: Mutant 437 | -10/Materials | Discovered new exit (range 8) 453 | -10/Materials | Entered another Materials area 453 | -9/Materials | Evolved 2 slots: Propulsion x2 824 | -9/Materials | Destroyed 7 combat bots 1025 | -9/Materials | Discovered new exit (range 12) 1035 | -9/Materials | Entered another Materials area 1035 | -8/Materials | Evolved 2 slots: Utility x2 1137 | -8/Materials | Lost 3 parts (1p1n1u) 1487 | -8/Materials | Lost 6 parts (1p4n1u) 1590 | -8/Materials | Repaired Sml. Storage Unit 1651 | -8/Materials | Repaired Cesium-ion Thruster 1657 | -8/Materials | Discovered new exit (range 3) 1658 | -8/Materials | Entered Storage 1662 | -8/Storage | Identified exit to Recycling 1882 | -8/Storage | Core integrity fell below 50% 1918 | -8/Storage | Repaired Seismic Detector 1973 | -8/Storage | Repaired Broken Lgt. Nuclear Core 2013 | -8/Storage | Repaired Hvy. Flail 2030 | -8/Storage | Identified exit to Garrison 2030 | -8/Storage | Entered Garrison 2050 | -8/Garrison | Triggered checkpoint 2052 | -8/Garrison | Triggered checkpoint 2058 | -8/Garrison | Discovered exit to Recycling (range 10) 2060 | -8/Garrison | Attempted to access garrison exit controls, blocked by remote lockdown 2064 | -8/Garrison | Triggered checkpoint 2075 | -8/Garrison | Build established: Hacker-Sprinter 2101 | -8/Garrison | Rescued a captive Derelict 2102 | -8/Garrison | Rescued a captive Derelict 2141 | -8/Garrison | Destroyed 8 combat bots 2145 | -8/Garrison | Lost 5 parts (1p2n2u) 2260 | -8/Garrison | Triggered checkpoint 2395 | -8/Garrison | Core integrity fell below 20% 2402 | -8/Garrison | Build established: Mutant 2423 | -8/Garrison | Triggered checkpoint 2458 | -8/Garrison | Triggered checkpoint 2480 | -8/Garrison | Triggered checkpoint 2522 | -8/Garrison | Garrison Relay disabled 2585 | -8/Garrison | Destroyed by D-53 Grenadier with Mini Grenade Launcher Last Messages --------------- 02532_ Relay Coupler [Sentry] fries itself. 02533_ Acquired Lgt. Nuclear Core. 02534_ Acquired Relay Coupler [NC]. 02534_ Relay Coupler [NC] fries itself. 02536_ Acquired 15 matter. 02536_ Acquired 34 matter. 02549_ CP9D3UT%BLG O99QU1JXPFXC/F|5MV5DLCEAU 02550_ Connecting with Garrison Terminal... 02550_ ALERT: Suspicious activity at Terminal G002. Transmitting hostile system tracking data. 02556_ Y-45 Defender suffers critical hit (Smash). 02556_ Destroyed Heat Sink. 02556_ Y-45 Defender system corrupted by crushing effect. 02560_ Y-45 Defender suffers critical hit (Smash). 02560_ Y-45 Defender destroyed. 02563_ Acquired 10 matter. 02581_ Cesium-ion Thruster destroyed. 02583_ I-25 Savior destroyed. 02585_ The unstable cave ceiling collapses. 02585_ Cesium-ion Thruster destroyed. Map ----- +----------------------------------------------------+ | ????????????????????#*% [ %= #???! !?????? | | ??????#########?????##[! ########### #???! !?????? | | ??????# ##[[#?????#" =""#????????# #???# #?????? | | ??????### ##[[#?????#######????????# #??? ##????? | | ????????# ##[[#????????????????????# ##### ###??? | | ????????# ##[[#????????????????????# ## ! #??? | | ????????# #????????????????????# ## #??? | | ????????# ##!!#????????????????????# ## ##??? | | ????????# #####????????????????????# #### # #??? | | ????????# #????????????????????????# # #??? | | ????????# #????????????????????????# ## # #??? | | ????##### ######???????????????????# ## ##??? | | ????# #???????????????????# #########???? | | ????# #???????????????????# #???# #???? | | ????######### #?????????????????### ##### #???? | | ??????????### ###???????????????# #???? | | ?????????## # # #???????????????# #???? | | ?????????# #= #???????????????# ##########???? | | ?????????# ######???????????# #????????????? | | # ???????# = # #???????????# #????????????? | | # ######### ## ######??????# #????????????? | | # ######## #????????????? | | # #????????????? | | + #????????????? | | ########### ## # #########????????????? | | ?????????### ## ## @###????????????????????? | | ?????????# ^ #????????????????????? | | ?????????# %= #????????????????????? | | ??????#### d #????????????????????? | | ####??# #????????????????????? | | ###??# #### # ## ###????????????????????? | | ######### ## ## #??????????????????????? | | # ????????????????????? | | ????????????????????? | | ####### ####???????????????????? | | #?????######""""######??????????????????????? | | ## ##???????????????????????????????????????????? | | ?# ##???????????????????????????????????????????? | | ## ###??????????????????????????????????????????? | | + ???????????????????????????????????????????? | | #????????????????????????????????????????????? | | # ###????????????????????????????????????????????? | | # #??????????????????????????????????????????????? | | # #??????????????????????????????????????????????? | | # #??????????????????????????????????????????????? | | # #??????????????????????????????????????????????? | | # #??????????????????????????????????????????????? | | + ###????????????????????????????????????????????? | | + #????????????????????????????????????????????? | | + #????????????????????????????????????????????? | +----------------------------------------------------+ Best States ------------- Heat Dissipation 45 Energy Generation 14 Energy Capacity 265 Matter Stores 300 Matter Capacity 300 Sight Range 16 Terrain Scan Range 16 Terrain Scan Density 85 Armor Coverage 150 Evasion (%) 72 Recoil Reduction 3 Offensive Hacking 10 Defensive Hacking 10 Item Schematics ----------------- None Robot Schematics ------------------ None Fabricated ------------ Nothing Alien Tech Used ----------------- None Achievements -------------- None Challenges ------------ None Game ------ Seed ClaymoresLatentAutogun Manual? 0 Play Time 01:04:47 Cumulative 75.3 hours Start 2023.07.30 @ 22:59:53 End 2023.07.31 @ 00:05:12 Sessions 1 Manual Loads 0 Difficulty Rogue Special Mode None Game No. 95 Rogue 95 Adventurer 0 Explorer 0 Win Type - Total 0 Types 0/0/0/0/0/0/0/0/0 Lore% 26 Gallery% 41 Achievement% 28 Wizard Run 0 Options --------- ASCII 0 Keyboard 0 Movement Mouse Keybinds 0 Fullscreen 1 Font 24/Smallcaps Map View 76x50 Tactical HUD 1 Map Filters NONE Filters NONE Steam 1 RUN: 352056f2-af50-46b0-9f14-1edece86ae02